[Event "TOP 12 FEMININ 2022 - Phase 1"]
[Site "MULHOUSE, France"]
[Date "2022.04.08"]
[Round "2.5"]
[White "BEREND VAN, Elvira"]
[Black "ARMAS LES, Lara-Maria"]
[Result "1-0"]
[TimeControl "90 min +30 secondes par coup"]
[WhiteElo "2323"]
[BlackElo "1901"]

1. d4 {[%clk 01:30:01]} {[%emt 00:00:59]} Nf6 {[%clk 01:30:55]} {[%emt
00:00:05]} 2. Nf3 {[%clk 01:30:17]} {[%emt 00:00:13]} e6 {[%clk 01:31:16]}
{[%emt 00:00:10]} 3. e3 {[%clk 01:29:34]} {[%emt 00:01:12]} c5 {[%clk
01:30:33]} {[%emt 00:01:14]} 4. Bd3 {[%clk 01:29:55]} {[%emt 00:00:09]} b6
{[%clk 01:29:06]} {[%emt 00:01:57]} 5. O-O {[%clk 01:30:09]} {[%emt 00:00:15]}
Bb7 {[%clk 01:29:19]} {[%emt 00:00:18]} 6. b3 {[%clk 01:28:24]} {[%emt
00:02:15]} Be7 {[%clk 01:22:28]} {[%emt 00:07:21]} 7. Bb2 {[%clk 01:28:45]}
{[%emt 00:00:09]} d6 {[%clk 01:21:44]} {[%emt 00:01:14]} 8. Qe2 {[%clk
01:24:01]} {[%emt 00:05:13]} Nbd7 {[%clk 01:16:58]} {[%emt 00:05:16]} 9. c4
{[%clk 01:18:55]} {[%emt 00:05:36]} O-O {[%clk 01:16:28]} {[%emt 00:01:01]} 10.
Nc3 {[%clk 01:17:17]} {[%emt 00:02:08]} Re8 {[%clk 01:10:07]} {[%emt 00:06:50]}
11. Rad1 {[%clk 01:14:56]} {[%emt 00:02:51]} a6 {[%clk 00:58:58]} {[%emt
00:11:40]} 12. Bb1 {[%clk 01:10:39]} {[%emt 00:04:47]} cxd4 {[%clk 00:55:48]}
{[%emt 00:03:40]} 13. Nxd4 {[%clk 01:07:33]} {[%emt 00:03:36]} Qc7 {[%clk
00:55:41]} {[%emt 00:00:37]} 14. Rc1 {[%clk 01:03:34]} {[%emt 00:04:29]} Rac8
{[%clk 00:54:56]} {[%emt 00:01:15]} 15. e4 {[%clk 00:59:48]} {[%emt 00:04:15]}
Qb8 {[%clk 00:53:36]} {[%emt 00:01:50]} 16. f4 {[%clk 00:53:20]} {[%emt
00:06:58]} Nf8 {[%clk 00:41:01]} {[%emt 00:13:06]} 17. Kh1 {[%clk 00:52:44]}
{[%emt 00:01:06]} N6d7 {[%clk 00:36:42]} {[%emt 00:04:49]} 18. Nf3 {[%clk
00:49:45]} {[%emt 00:03:29]} Bf6 {[%clk 00:33:43]} {[%emt 00:03:29]} 19. Na4
{[%clk 00:46:21]} {[%emt 00:03:54]} Bxb2 {[%clk 00:32:58]} {[%emt 00:01:14]} 20.
Nxb2 {[%clk 00:46:40]} {[%emt 00:00:12]} Ng6 {[%clk 00:28:22]} {[%emt
00:05:06]} 21. Qd2 {[%clk 00:46:23]} {[%emt 00:00:47]} Nc5 {[%clk 00:27:11]}
{[%emt 00:01:41]} 22. Rce1 {[%clk 00:46:35]} {[%emt 00:00:18]} b5 {[%clk
00:25:34]} {[%emt 00:02:08]} 23. f5 {[%clk 00:44:41]} {[%emt 00:02:23]} Nf8
{[%clk 00:15:13]} {[%emt 00:10:51]} 24. f6 {[%clk 00:40:04]} {[%emt 00:05:06]}
gxf6 {[%clk 00:09:57]} {[%emt 00:05:46]} 25. Nd4 {[%clk 00:40:08]} {[%emt
00:00:26]} bxc4 {[%clk 00:09:04]} {[%emt 00:01:24]} 26. Nxc4 {[%clk 00:38:40]}
{[%emt 00:01:58]} d5 {[%clk 00:07:40]} {[%emt 00:01:55]} 27. exd5 {[%clk
00:38:22]} {[%emt 00:00:47]} Bxd5 {[%clk 00:08:02]} {[%emt 00:00:08]} 28. Ne3
{[%clk 00:37:15]} {[%emt 00:01:36]} Be4 {[%clk 00:07:07]} {[%emt 00:01:26]} 29.
Ng4 {[%clk 00:37:26]} {[%emt 00:00:18]} f5 {[%clk 00:05:01]} {[%emt 00:02:37]}
30. Nf6+ {[%clk 00:37:44]} {[%emt 00:00:12]} Kg7 {[%clk 00:04:51]} {[%emt
00:00:40]} 31. Nh5+ {[%clk 00:33:21]} {[%emt 00:04:53]} Kh8 {[%clk 00:02:44]}
{[%emt 00:02:37]} 32. Bxe4 {[%clk 00:32:21]} {[%emt 00:01:29]} Nxe4 {[%clk
00:03:03]} {[%emt 00:00:12]} 33. Rxe4 {[%clk 00:32:39]} {[%emt 00:00:12]} fxe4
{[%clk 00:03:01]} {[%emt 00:00:32]} 34. Qg5 {[%clk 00:33:00]} {[%emt 00:00:08]}
Ng6 {[%clk 00:01:19]} {[%emt 00:02:12]} 35. Qf6+ {[%clk 00:33:25]} {[%emt
00:00:05]} 1-0

[Event "TOP 12 FEMININ 2022 - Phase 1"]
[Site "MULHOUSE, France"]
[Date "2022.04.08"]
[Round "2.6"]
[White "WOLHERS-ARMAS  LES, Rike"]
[Black "SAVINA VAN, Anastasia"]
[Result "0-1"]
[TimeControl "90 min +30 secondes par coup"]
[WhiteElo "1972"]
[BlackElo "2345"]

1. d4 {[%clk 01:30:57]} {[%emt 00:00:02]} Nf6 {[%clk 01:30:50]} {[%emt
00:00:10]} 2. c4 {[%clk 01:31:17]} {[%emt 00:00:11]} g6 {[%clk 01:31:11]}
{[%emt 00:00:09]} 3. Nc3 {[%clk 01:31:34]} {[%emt 00:00:12]} Bg7 {[%clk
01:31:27]} {[%emt 00:00:14]} 4. e4 {[%clk 01:31:56]} {[%emt 00:00:09]} d6
{[%clk 01:31:44]} {[%emt 00:00:13]} 5. f3 {[%clk 01:32:08]} {[%emt 00:00:18]}
O-O {[%clk 01:32:06]} {[%emt 00:00:07]} 6. Be3 {[%clk 01:32:31]} {[%emt
00:00:07]} c5 {[%clk 01:31:50]} {[%emt 00:00:46]} 7. dxc5 {[%clk 01:30:10]}
{[%emt 00:02:51]} dxc5 {[%clk 01:32:13]} {[%emt 00:00:07]} 8. e5 {[%clk
01:29:25]} {[%emt 00:01:15]} Nfd7 {[%clk 01:23:12]} {[%emt 00:09:31]} 9. f4
{[%clk 01:27:07]} {[%emt 00:02:49]} Nc6 {[%clk 01:21:02]} {[%emt 00:02:40]} 10.
Nf3 {[%clk 01:26:18]} {[%emt 00:01:19]} f6 {[%clk 01:13:27]} {[%emt 00:08:05]}
11. e6 {[%clk 01:14:36]} {[%emt 00:12:12]} Nb6 {[%clk 01:11:38]} {[%emt
00:02:18]} 12. Bxc5 {[%clk 01:13:03]} {[%emt 00:02:04]} Bxe6 {[%clk 01:10:19]}
{[%emt 00:01:49]} 13. b3 {[%clk 01:12:16]} {[%emt 00:01:18]} Nd7 {[%clk
00:54:35]} {[%emt 00:16:13]} 14. Be3 {[%clk 01:04:32]} {[%emt 00:08:14]} b6
{[%clk 00:48:41]} {[%emt 00:06:23]} 15. Be2 {[%clk 01:01:31]} {[%emt 00:03:32]}
Nc5 {[%clk 00:48:42]} {[%emt 00:00:28]} 16. Nd4 {[%clk 00:54:32]} {[%emt
00:07:30]} Nxd4 {[%clk 00:40:57]} {[%emt 00:08:15]} 17. Bxd4 {[%clk 00:53:48]}
{[%emt 00:01:14]} Bf5 {[%clk 00:31:24]} {[%emt 00:10:03]} 18. O-O {[%clk
00:49:45]} {[%emt 00:04:33]} Bc2 {[%clk 00:28:18]} {[%emt 00:03:35]} 19. Qxc2
{[%clk 00:46:36]} {[%emt 00:03:40]} Qxd4+ {[%clk 00:28:42]} {[%emt 00:00:05]}
20. Kh1 {[%clk 00:45:27]} {[%emt 00:01:39]} f5 {[%clk 00:28:48]} {[%emt
00:00:25]} 21. Nb5 {[%clk 00:44:17]} {[%emt 00:01:39]} Qxa1 {[%clk 00:05:52]}
{[%emt 00:23:27]} 22. Rxa1 {[%clk 00:44:41]} {[%emt 00:00:06]} Bxa1 {[%clk
00:06:18]} {[%emt 00:00:03]} 23. Bf3 {[%clk 00:39:37]} {[%emt 00:05:35]} Rad8
{[%clk 00:04:03]} {[%emt 00:02:45]} 24. h3 {[%clk 00:38:06]} {[%emt 00:02:01]}
a6 {[%clk 00:00:52]} {[%emt 00:03:40]} 25. Nc7 {[%clk 00:29:54]} {[%emt
00:08:42]} a5 {[%clk 00:01:00]} {[%emt 00:00:23]} 26. Nd5 {[%clk 00:26:16]}
{[%emt 00:04:08]} e6 {[%clk 00:01:17]} {[%emt 00:00:13]} 27. Nxb6 {[%clk
00:25:32]} {[%emt 00:01:13]} Bd4 {[%clk 00:00:36]} {[%emt 00:01:12]} 28. Qe2
{[%clk 00:24:46]} {[%emt 00:01:16]} Rd6 {[%clk 00:00:32]} {[%emt 00:00:35]} 29.
Na4 {[%clk 00:24:25]} {[%emt 00:00:50]} Nxa4 {[%clk 00:00:45]} {[%emt
00:00:17]} 30. bxa4 {[%clk 00:24:53]} Rb8 {[%clk 00:01:04]} {[%emt 00:00:12]}
31. c5 {[%clk 00:21:57]} {[%emt 00:03:25]} Bxc5 {[%clk 00:01:29]} {[%emt
00:00:05]} 32. Qc4 {[%clk 00:22:13]} {[%emt 00:00:14]} Be3 {[%clk 00:00:49]}
{[%emt 00:01:10]} 33. Kh2 {[%clk 00:20:02]} {[%emt 00:02:41]} Rbd8 {[%clk
00:00:36]} {[%emt 00:00:43]} 34. Bd1 {[%clk 00:18:10]} {[%emt 00:02:23]} Kf7
{[%clk 00:00:33]} {[%emt 00:00:33]} 35. Bb3 {[%clk 00:18:27]} {[%emt 00:00:12]}
Bd2 {[%clk 00:00:33]} {[%emt 00:00:31]} 36. h4 {[%clk 00:16:30]} {[%emt
00:02:27]} Bb4 {[%clk 00:00:33]} {[%emt 00:00:30]} 37. Qc7+ {[%clk 00:15:41]}
{[%emt 00:01:18]} R8d7 {[%clk 00:00:35]} {[%emt 00:00:29]} 38. Qc8 {[%clk
00:15:35]} {[%emt 00:00:36]} Bd2 {[%clk 00:00:32]} {[%emt 00:00:33]} 39. g3
{[%clk 00:15:13]} {[%emt 00:00:52]} Be3 {[%clk 00:00:34]} {[%emt 00:00:29]} 40.
Qh8 {[%clk 00:14:58]} {[%emt 00:00:44]} Rd2+ {[%clk 00:00:40]} {[%emt
00:00:23]} 41. Kh3 {[%clk 00:14:32]} {[%emt 00:00:56]} Bg1 {[%clk 00:00:33]}
{[%emt 00:00:38]} 42. Qxh7+ {[%clk 00:12:48]} {[%emt 00:02:14]} Kf6 {[%clk
00:00:36]} {[%emt 00:00:26]} 43. Qh8+ {[%clk 00:12:46]} {[%emt 00:00:32]} Kf7
{[%clk 00:00:32]} {[%emt 00:00:35]} 44. Qh7+ {[%clk 00:13:08]} {[%emt
00:00:08]} Kf6 {[%clk 00:01:01]} {[%emt 00:00:01]} 45. Qh8+ {[%clk 00:13:31]}
{[%emt 00:00:06]} Ke7 {[%clk 00:00:33]} {[%emt 00:00:59]} 46. Qg7+ {[%clk
00:10:46]} {[%emt 00:03:15]} Kd8 {[%clk 00:01:00]} {[%emt 00:00:02]} 47. Qh8+
{[%clk 00:10:27]} {[%emt 00:00:50]} Kc7 {[%clk 00:00:50]} {[%emt 00:00:40]} 48.
Qe5+ {[%clk 00:10:45]} {[%emt 00:00:11]} Kc8 {[%clk 00:00:39]} {[%emt
00:00:42]} 49. Qh8+ {[%clk 00:09:22]} {[%emt 00:01:53]} Kb7 {[%clk 00:00:41]}
{[%emt 00:00:28]} 50. Bd5+ {[%clk 00:08:43]} {[%emt 00:01:09]} R7xd5 {[%clk
00:00:55]} {[%emt 00:00:16]} 51. Qc3 {[%emt 00:00:08]} Rd7 52. Qf3+ {[%emt
00:00:09]} Kb6 {[%emt 00:00:01]} 0-1

[Event "TOP 12 FEMININ 2022 - Phase 1"]
[Site "MULHOUSE, France"]
[Date "2022.04.08"]
[Round "2.7"]
[White "STEIL-ANTONI  VAN, Fiona"]
[Black "BISMUTH LES, Lea"]
[Result "1-0"]
[TimeControl "90 min +30 secondes par coup"]
[WhiteElo "2189"]
[BlackElo "1957"]

1. e4 {[%clk 01:30:59]} e5 {[%clk 01:30:48]} {[%emt 00:00:13]} 2. Nf3 {[%clk
01:31:22]} {[%emt 00:00:06]} Nc6 {[%clk 01:31:11]} {[%emt 00:00:08]} 3. Bc4
{[%clk 01:31:47]} {[%emt 00:00:05]} Nf6 {[%clk 01:31:32]} {[%emt 00:00:08]} 4.
d3 {[%clk 01:32:11]} {[%emt 00:00:06]} Be7 {[%clk 01:29:40]} {[%emt 00:02:22]}
5. c3 {[%clk 01:31:57]} {[%emt 00:00:44]} d6 {[%clk 01:29:46]} {[%emt
00:00:24]} 6. Bb3 {[%clk 01:31:34]} {[%emt 00:00:53]} O-O {[%clk 01:30:00]}
{[%emt 00:00:16]} 7. h3 {[%clk 01:29:30]} {[%emt 00:02:34]} Kh8 {[%clk
01:25:40]} {[%emt 00:04:50]} 8. g4 {[%clk 01:26:40]} {[%emt 00:03:20]} Be6
{[%clk 01:24:46]} {[%emt 00:01:24]} 9. Nbd2 {[%clk 01:22:54]} {[%emt 00:04:16]}
d5 {[%clk 01:21:01]} {[%emt 00:04:15]} 10. Ng5 {[%clk 01:13:41]} {[%emt
00:09:43]} Qd7 {[%clk 01:16:58]} {[%emt 00:04:33]} 11. Nxe6 {[%clk 01:12:16]}
{[%emt 00:01:55]} fxe6 {[%clk 01:16:53]} {[%emt 00:00:34]} 12. Qe2 {[%clk
01:10:52]} {[%emt 00:01:55]} Rad8 {[%clk 01:15:10]} {[%emt 00:02:14]} 13. Nf3
{[%clk 01:05:52]} {[%emt 00:05:29]} Bc5 {[%clk 01:11:42]} {[%emt 00:03:58]} 14.
O-O {[%clk 00:55:42]} {[%emt 00:10:40]} Rde8 {[%clk 00:34:22]} {[%emt
00:37:50]} 15. Bg5 {[%clk 00:48:22]} {[%emt 00:07:50]} h6 {[%clk 00:33:59]}
{[%emt 00:00:53]} 16. Bh4 {[%clk 00:46:30]} {[%emt 00:02:20]} Qf7 {[%clk
00:33:32]} {[%emt 00:00:59]} 17. Kg2 {[%clk 00:45:37]} {[%emt 00:01:23]} Qg6
{[%clk 00:32:29]} {[%emt 00:01:33]} 18. Bxf6 {[%clk 00:42:17]} {[%emt
00:03:50]} gxf6 {[%clk 00:26:45]} {[%emt 00:06:14]} 19. exd5 {[%clk 00:41:26]}
{[%emt 00:01:20]} exd5 {[%clk 00:27:01]} {[%emt 00:00:15]} 20. Bxd5 {[%clk
00:40:10]} {[%emt 00:01:45]} h5 {[%clk 00:24:50]} {[%emt 00:02:42]} 21. Be4
{[%clk 00:37:53]} {[%emt 00:02:47]} f5 {[%clk 00:23:52]} {[%emt 00:01:28]} 22.
Nh4 {[%clk 00:34:03]} {[%emt 00:04:20]} Qg5 {[%clk 00:16:12]} {[%emt 00:08:10]}
23. Nxf5 {[%clk 00:34:17]} {[%emt 00:00:16]} Ne7 {[%clk 00:16:11]} {[%emt
00:00:30]} 24. Nxe7 {[%clk 00:31:51]} {[%emt 00:02:57]} Rxe7 {[%clk 00:16:32]}
{[%emt 00:00:09]} 25. f3 {[%clk 00:29:32]} {[%emt 00:02:49]} c6 {[%clk
00:14:37]} {[%emt 00:02:25]} 26. b4 {[%clk 00:25:47]} {[%emt 00:04:15]} Bb6
{[%clk 00:09:38]} {[%emt 00:05:29]} 27. a4 {[%clk 00:26:03]} {[%emt 00:00:14]}
Rg7 {[%clk 00:09:51]} {[%emt 00:00:17]} 28. a5 {[%clk 00:24:52]} {[%emt
00:01:41]} Bd8 {[%clk 00:10:10]} {[%emt 00:00:11]} 29. Rfe1 {[%clk 00:22:22]}
{[%emt 00:03:00]} Qh6 {[%clk 00:07:46]} {[%emt 00:02:53]} 30. a6 {[%clk
00:18:18]} {[%emt 00:04:36]} b6 {[%clk 00:07:51]} {[%emt 00:00:24]} 31. Rh1
{[%clk 00:12:00]} {[%emt 00:06:48]} Bg5 {[%clk 00:05:34]} {[%emt 00:02:47]} 32.
Rad1 {[%clk 00:11:16]} {[%emt 00:01:14]} Bf4 {[%clk 00:03:55]} {[%emt
00:02:09]} 33. c4 {[%clk 00:09:15]} {[%emt 00:02:30]} c5 {[%clk 00:03:09]}
{[%emt 00:01:17]} 34. bxc5 {[%clk 00:07:33]} {[%emt 00:02:13]} bxc5 {[%clk
00:03:37]} {[%emt 00:00:02]} 35. Rb1 {[%clk 00:07:29]} {[%emt 00:00:33]} Qxa6
{[%clk 00:03:42]} {[%emt 00:00:25]} 36. Rb5 {[%clk 00:07:17]} {[%emt 00:00:41]}
Rc7 {[%clk 00:01:18]} {[%emt 00:02:54]} 37. Rhb1 {[%clk 00:07:09]} {[%emt
00:00:38]} Qf6 {[%clk 00:01:29]} {[%emt 00:00:20]} 38. Qf2 {[%clk 00:05:16]}
{[%emt 00:02:23]} Qe7 {[%clk 00:01:17]} {[%emt 00:00:42]} 39. Rb7 {[%clk
00:04:45]} {[%emt 00:01:01]} Rfc8 {[%clk 00:01:16]} {[%emt 00:00:32]} 40. Rxc7
{[%clk 00:04:40]} {[%emt 00:00:35]} Rxc7 {[%clk 00:01:44]} {[%emt 00:00:02]} 41.
Rb8+ {[%clk 00:04:43]} {[%emt 00:00:26]} Kg7 {[%clk 00:02:11]} {[%emt
00:00:02]} 42. Bd5 {[%clk 00:04:40]} {[%emt 00:00:34]} h4 {[%clk 00:01:53]}
{[%emt 00:00:48]} 43. Qe2 {[%clk 00:04:21]} {[%emt 00:00:49]} Kh6 {[%clk
00:00:35]} {[%emt 00:01:48]} 44. Rh8+ {[%clk 00:03:57]} {[%emt 00:00:53]} Kg5
{[%clk 00:01:03]} {[%emt 00:00:03]} 45. Qe4 {[%clk 00:04:03]} {[%emt 00:00:24]}
Qd7 {[%clk 00:00:50]} {[%emt 00:00:44]} 46. Rg8+ {[%clk 00:03:31]} {[%emt
00:01:00]} Kf6 {[%clk 00:00:41]} {[%emt 00:00:39]} 47. Qg6+ {[%clk 00:03:51]}
{[%emt 00:00:10]} Ke7 {[%clk 00:01:04]} {[%emt 00:00:08]} 48. Qf7+ {[%clk
00:04:08]} {[%emt 00:00:13]} Kd6 {[%clk 00:01:30]} {[%emt 00:00:03]} 49. Rg6+
{[%clk 00:04:29]} {[%emt 00:00:09]} Qe6 {[%clk 00:01:52]} {[%emt 00:00:08]} 50.
Rxe6# {[%emt 00:00:07]} 1-0

[Event "TOP 12 FEMININ 2022 - Phase 1"]
[Site "MULHOUSE, France"]
[Date "2022.04.08"]
[Round "2.8"]
[White "LE BAIL  LES, Clara"]
[Black "THOMAS  VAN, Anysia"]
[Result "1/2-1/2"]
[TimeControl "90 min +30 secondes par coup"]
[WhiteElo "1960"]
[BlackElo "2128"]

1. e4 {[%clk 01:30:55]} {[%emt 00:00:04]} c5 {[%clk 01:30:55]} {[%emt
00:00:05]} 2. c3 {[%clk 01:30:38]} {[%emt 00:00:47]} d5 {[%clk 01:31:18]}
{[%emt 00:00:08]} 3. exd5 {[%clk 01:30:31]} {[%emt 00:00:37]} Qxd5 {[%clk
01:31:42]} {[%emt 00:00:06]} 4. d4 {[%clk 01:30:23]} {[%emt 00:00:37]} g6
{[%clk 01:31:58]} {[%emt 00:00:14]} 5. Nf3 {[%clk 01:29:59]} {[%emt 00:00:54]}
Bg7 {[%clk 01:32:15]} {[%emt 00:00:13]} 6. Na3 {[%clk 01:29:27]} {[%emt
00:01:03]} cxd4 {[%clk 01:32:16]} {[%emt 00:00:29]} 7. Bc4 {[%clk 01:27:55]}
{[%emt 00:02:02]} Qe4+ {[%clk 01:32:34]} {[%emt 00:00:11]} 8. Be3 {[%clk
01:27:25]} {[%emt 00:01:00]} Nh6 {[%clk 01:32:36]} {[%emt 00:00:29]} 9. cxd4
{[%clk 01:20:40]} {[%emt 00:07:15]} O-O {[%clk 01:32:03]} {[%emt 00:01:03]} 10.
Nb5 {[%clk 01:14:01]} {[%emt 00:07:09]} Nc6 {[%clk 01:30:43]} {[%emt 00:01:49]}
11. Nc3 {[%clk 01:10:50]} {[%emt 00:03:41]} Qf5 {[%clk 01:29:36]} {[%emt
00:01:37]} 12. O-O {[%clk 01:10:24]} {[%emt 00:00:56]} Ng4 {[%clk 01:26:38]}
{[%emt 00:03:28]} 13. Qd2 {[%clk 01:07:02]} {[%emt 00:03:51]} e6 {[%clk
01:12:15]} {[%emt 00:14:53]} 14. Rad1 {[%clk 01:00:11]} {[%emt 00:07:21]} Nxe3
{[%clk 01:03:56]} {[%emt 00:08:50]} 15. fxe3 {[%clk 00:59:40]} {[%emt
00:01:01]} Qa5 {[%clk 01:03:53]} {[%emt 00:00:32]} 16. Qf2 {[%clk 00:53:41]}
{[%emt 00:06:29]} Bd7 {[%clk 00:51:45]} {[%emt 00:12:38]} 17. Kh1 {[%clk
00:37:01]} {[%emt 00:17:11]} Qb4 {[%clk 00:44:00]} {[%emt 00:08:15]} 18. Bd3
{[%clk 00:32:40]} {[%emt 00:04:51]} Rad8 {[%clk 00:41:41]} {[%emt 00:02:48]} 19.
Ne4 {[%clk 00:28:10]} {[%emt 00:05:01]} b6 {[%clk 00:37:55]} {[%emt 00:04:16]}
20. a3 {[%clk 00:25:21]} {[%emt 00:03:19]} Qe7 {[%clk 00:37:48]} {[%emt
00:00:36]} 21. Ng3 {[%clk 00:19:54]} {[%emt 00:05:58]} Bc8 {[%clk 00:35:05]}
{[%emt 00:03:12]} 22. Bb1 {[%clk 00:19:13]} {[%emt 00:01:12]} Ba6 {[%clk
00:28:21]} {[%emt 00:07:13]} 23. Rfe1 {[%clk 00:17:55]} {[%emt 00:01:48]} Qd7
{[%clk 00:21:00]} {[%emt 00:07:51]} 24. b4 {[%clk 00:13:41]} {[%emt 00:04:45]}
Bb7 {[%clk 00:11:58]} {[%emt 00:09:32]} 25. Ba2 {[%clk 00:12:13]} {[%emt
00:01:57]} a5 {[%clk 00:12:04]} {[%emt 00:00:24]} 26. bxa5 {[%clk 00:08:48]}
{[%emt 00:03:56]} bxa5 {[%clk 00:12:14]} {[%emt 00:00:20]} 27. Qd2 {[%clk
00:08:34]} {[%emt 00:00:44]} Qe7 {[%clk 00:11:08]} {[%emt 00:01:35]} 28. Rb1
{[%clk 00:07:45]} {[%emt 00:01:19]} Ne5 {[%clk 00:04:30]} {[%emt 00:07:08]} 29.
Nxe5 {[%clk 00:07:12]} {[%emt 00:01:04]} Bxe5 {[%clk 00:04:56]} {[%emt
00:00:04]} 30. Qxa5 {[%clk 00:07:23]} {[%emt 00:00:19]} Bb8 {[%clk 00:01:19]}
{[%emt 00:04:06]} 31. Qb4 {[%clk 00:04:18]} {[%emt 00:03:36]} Qh4 {[%clk
00:01:20]} {[%emt 00:00:29]} 32. Nf1 {[%clk 00:04:40]} {[%emt 00:00:09]} Be4
{[%clk 00:01:00]} {[%emt 00:00:49]} 33. Rb2 {[%clk 00:04:00]} {[%emt 00:01:11]}
Bd6 {[%clk 00:01:00]} {[%emt 00:00:29]} 34. Qd2 {[%clk 00:04:08]} {[%emt
00:00:21]} Bxa3 {[%clk 00:01:03]} {[%emt 00:00:28]} 35. Qf2 {[%clk 00:02:27]}
{[%emt 00:02:11]} Qg5 {[%clk 00:00:56]} {[%emt 00:00:37]} 36. Rbe2 {[%clk
00:01:43]} {[%emt 00:01:14]} Bd6 {[%clk 00:00:49]} {[%emt 00:00:37]} 37. Bb1
{[%clk 00:01:31]} {[%emt 00:00:41]} Bxb1 {[%clk 00:00:34]} {[%emt 00:00:46]} 38.
Rxb1 {[%clk 00:01:59]} {[%emt 00:00:02]} Qh5 {[%clk 00:00:40]} {[%emt
00:00:24]} 39. Reb2 {[%clk 00:02:07]} {[%emt 00:00:22]} Rc8 {[%clk 00:00:47]}
{[%emt 00:00:22]} 40. Rb6 {[%clk 00:01:31]} {[%emt 00:01:07]} Bc7 {[%clk
00:00:55]} {[%emt 00:00:22]} 41. Rb7 {[%clk 00:01:31]} {[%emt 00:00:30]} e5
{[%clk 00:00:48]} {[%emt 00:00:37]} 42. d5 {[%clk 00:01:23]} {[%emt 00:00:38]}
e4 {[%clk 00:01:00]} {[%emt 00:00:18]} 43. R7b5 {[%clk 00:01:06]} {[%emt
00:00:47]} Bd6 {[%clk 00:01:28]} {[%emt 00:00:03]} 44. Qf6 {[%emt 00:00:46]}
Rcd8 {[%clk 00:01:00]} {[%emt 00:00:55]} 45. Qd4 {[%clk 00:00:45]} {[%emt
00:00:37]} Rfe8 {[%clk 00:01:01]} {[%emt 00:00:28]} 46. Rb7 {[%clk 00:00:54]}
{[%emt 00:00:22]} Be5 {[%clk 00:00:38]} {[%emt 00:00:53]} 47. Qxe4 {[%clk
00:00:58]} {[%emt 00:00:26]} Bxh2 {[%emt 00:00:27]} 48. Qf3 {[%clk 00:01:20]}
{[%emt 00:00:07]} Bd6+ {[%clk 00:00:32]} {[%emt 00:00:40]} 49. Qxh5 {[%clk
00:01:41]} {[%emt 00:00:09]} gxh5 {[%clk 00:01:01]} {[%emt 00:00:01]} 50. R1b2
{[%clk 00:00:52]} {[%emt 00:01:18]} Re5 {[%clk 00:00:39]} {[%emt 00:00:52]} 51.
Rf2 {[%clk 00:01:08]} {[%emt 00:00:15]} f5 {[%clk 00:00:41]} {[%emt 00:00:28]}
52. Rb5 {[%clk 00:01:08]} {[%emt 00:00:30]} Be7 {[%clk 00:00:46]} {[%emt
00:00:24]} 53. Rd2 {[%clk 00:00:45]} {[%emt 00:00:53]} Bg5 {[%clk 00:01:09]}
{[%emt 00:00:07]} 54. Kg1 {[%clk 00:00:49]} {[%emt 00:00:26]} Rxe3 {[%clk
00:00:38]} {[%emt 00:01:02]} 55. Nxe3 {[%clk 00:00:49]} {[%emt 00:00:29]} Bxe3+
{[%clk 00:01:04]} {[%emt 00:00:05]} 56. Rf2 {[%clk 00:01:16]} {[%emt 00:00:03]}
Ra8 {[%clk 00:00:34]} {[%emt 00:01:00]} 57. Kf1 {[%clk 00:01:02]} {[%emt
00:00:43]} Ra1+ {[%clk 00:00:35]} {[%emt 00:00:30]} 58. Ke2 {[%clk 00:01:26]}
{[%emt 00:00:06]} Bxf2 {[%clk 00:01:02]} {[%emt 00:00:03]} 59. Kxf2 {[%clk
00:01:54]} {[%emt 00:00:02]} Kf7 {[%clk 00:00:40]} {[%emt 00:00:52]} 60. Rb7+
{[%clk 00:01:36]} {[%emt 00:00:48]} Kf6 {[%clk 00:00:38]} {[%emt 00:00:31]} 61.
Rxh7 {[%clk 00:01:28]} {[%emt 00:00:39]} Rd1 {[%clk 00:01:02]} {[%emt
00:00:06]} 62. Rxh5 {[%clk 00:01:45]} {[%emt 00:00:13]} Rxd5 {[%clk 00:01:27]}
{[%emt 00:00:05]} 63. g4 {[%clk 00:01:09]} {[%emt 00:01:05]} Ra5 {[%clk
00:01:08]} {[%emt 00:00:49]} 64. Rxf5+ {[%clk 00:01:32]} {[%emt 00:00:08]}
Rxf5+ {[%clk 00:01:33]} {[%emt 00:00:04]} 65. gxf5 {[%clk 00:01:59]} {[%emt
00:00:03]} Kxf5 {[%emt 00:00:03]} 1/2-1/2

[Event "TOP 12 FEMININ 2022 - Phase 1"]
[Site "MULHOUSE, France"]
[Date "2022.04.08"]
[Round "2.9"]
[White "VEGA GUTTIERREZ  MUL, Sabrina"]
[Black "AUVRAY 608, Juliette"]
[Result "1-0"]
[TimeControl "90 min +30 secondes par coup"]
[WhiteElo "2385"]
[BlackElo "1976"]

1. e4 {[%clk 01:30:55]} {[%emt 00:00:03]} c5 {[%clk 01:30:51]} {[%emt
00:00:10]} 2. Nf3 {[%clk 01:31:18]} {[%emt 00:00:06]} d6 {[%clk 01:31:12]}
{[%emt 00:00:10]} 3. d4 {[%clk 01:31:40]} {[%emt 00:00:08]} cxd4 {[%clk
01:31:33]} {[%emt 00:00:10]} 4. Nxd4 {[%clk 01:32:02]} {[%emt 00:00:07]} Nf6
{[%clk 01:31:37]} {[%emt 00:00:27]} 5. Nc3 {[%clk 01:32:22]} {[%emt 00:00:09]}
g6 {[%clk 01:31:22]} {[%emt 00:00:45]} 6. Be3 {[%clk 01:30:50]} {[%emt
00:02:01]} Nc6 {[%clk 01:30:16]} {[%emt 00:01:37]} 7. f3 {[%clk 01:30:32]}
{[%emt 00:00:48]} h5 {[%clk 01:28:57]} {[%emt 00:01:49]} 8. Bc4 {[%clk
01:30:18]} {[%emt 00:00:44]} Bd7 {[%clk 01:26:46]} {[%emt 00:02:41]} 9. Qd2
{[%clk 01:29:23]} {[%emt 00:01:25]} Ne5 {[%clk 01:21:48]} {[%emt 00:05:29]} 10.
Bb3 {[%clk 01:28:58]} {[%emt 00:00:54]} Rc8 {[%clk 01:15:46]} {[%emt 00:06:32]}
11. O-O-O {[%clk 01:27:38]} {[%emt 00:01:49]} Nc4 {[%clk 01:04:36]} {[%emt
00:11:41]} 12. Bxc4 {[%clk 01:27:43]} {[%emt 00:00:24]} Rxc4 {[%clk 01:04:53]}
{[%emt 00:00:14]} 13. h3 {[%clk 01:25:43]} {[%emt 00:02:29]} h4 {[%clk
01:01:25]} {[%emt 00:04:00]} 14. Rhe1 {[%clk 01:20:42]} {[%emt 00:05:30]} Rh5
{[%clk 00:56:48]} {[%emt 00:05:07]} 15. Kb1 {[%clk 01:15:49]} {[%emt 00:05:22]}
b5 {[%clk 00:47:56]} {[%emt 00:09:23]} 16. Nde2 {[%clk 00:50:15]} {[%emt
00:26:04]} b4 {[%clk 00:37:50]} {[%emt 00:10:36]} 17. Nd5 {[%clk 00:49:58]}
{[%emt 00:00:47]} e6 {[%clk 00:25:40]} {[%emt 00:12:41]} 18. Nef4 {[%clk
00:26:45]} {[%emt 00:23:41]} exd5 {[%clk 00:14:41]} {[%emt 00:11:30]} 19. Nxh5
{[%clk 00:26:39]} {[%emt 00:00:35]} Nxe4 {[%clk 00:10:35]} {[%emt 00:04:37]} 20.
fxe4 {[%clk 00:23:15]} {[%emt 00:03:53]} dxe4 {[%clk 00:10:42]} {[%emt
00:00:25]} 21. Qd5 {[%clk 00:19:44]} {[%emt 00:04:00]} Be6 {[%clk 00:10:04]}
{[%emt 00:01:08]} 22. Qb5+ {[%clk 00:20:00]} {[%emt 00:00:14]} Ke7 {[%clk
00:10:10]} {[%emt 00:00:24]} 23. Bg5+ {[%clk 00:20:16]} {[%emt 00:00:14]} 1-0